fUST/lending_fUST_20250716
["ID","MTS","AMOUNT","RATE_DAILY","PERIOD"]
[372490169,1752661868837,-3292.749114,0.0002434,2]
[372490170,1752661868846,-189.074,0.0002436,2]
[372490171,1752661868856,-343.96916885,0.00024362,2]
[372490172,1752661868865,-168.0,0.00024378,2]
[372490173,1752661868876,-367.05573691,0.00024383,2]
[372490174,1752661868887,-326.23388729,0.00024383,2]
[372490175,1752661868903,-142.46611271,0.00024383,2]
[372490176,1752661868912,-151.0,0.00024383,7]
[372490177,1752661868922,-151.0,0.00024383,7]
[372490178,1752661868932,-577.88,0.00024383,2]
[372490179,1752661868941,-886.16,0.00024383,2]
[372490180,1752661868952,-566.1,0.00024383,2]
[372490181,1752661868962,-460.0,0.00024383,2]
[372490182,1752661868972,-460.0,0.00024383,2]
[372490183,1752661868981,-876.74,0.00024383,2]
[372490184,1752661868993,-704.09,0.00024383,2]
[372490185,1752661869002,-460.0,0.00024383,2]
[372490186,1752661869011,-151.0,0.00024383,7]
[372490187,1752661869021,-953.48,0.00024383,2]
[372490188,1752661869031,-1046.68,0.00024383,2]
[372490189,1752661869041,-2218.72,0.00024383,2]
[372490190,1752661869050,-460.0,0.00024383,2]
[372490191,1752661869060,-389.78966792,0.00024383,2]
[372490192,1752661869072,-246.66033208,0.00024383,2]
[372490193,1752661869081,-3812.50886352,0.00024383,2]
[372490194,1752661869198,-1029.58113648,0.00024383,2]
[372490195,1752661869208,-467.04,0.00024383,2]
[372490196,1752661869218,-548.86,0.00024383,2]
[372490197,1752661869227,-1506.49,0.00024383,2]
[372490198,1752661869237,-1707.39,0.00024383,2]
[372490199,1752661869246,-460.0,0.00024383,2]
[372490200,1752661869256,-460.0,0.00024383,2]
[372490201,1752661869266,-656.21,0.00024383,2]
[372490202,1752661869275,-460.0,0.00024383,2]
[372490203,1752661869285,-1678.67,0.00024383,2]
[372490204,1752661869295,-2804.76,0.00024383,2]
[372490205,1752661869305,-880.95,0.00024383,2]
[372490206,1752661869315,-547.27,0.00024383,2]
[372490207,1752661869325,-1611.13,0.00024383,2]
[372490208,1752661869334,-538.41,0.00024383,2]
[372490209,1752661869343,-3033.39,0.00024383,2]
[372490210,1752661869353,-1379.03,0.00024383,2]
[372490211,1752661869362,-1842.24441057,0.00024383,2]
[372490212,1752661869480,-1603.08384738,0.00019078,2]
[372490213,1752661869491,-96.91615262,0.00022191,2]
[372490214,1752661869503,-363.08384738,0.00022191,2]
[372490215,1752661869513,-165.81717644,0.00022465,2]
[372490216,1752661869525,-294.18282356,0.00022465,2]
[372490217,1752661869535,-460.0,0.00022739,2]
[372490218,1752661869546,-460.0,0.00023013,2]
[372490219,1752661869555,-153.55950051,0.00023287,2]
[372490220,1752661869628,-475.18775664,0.00019178,2]
[372490221,1752661869703,-460.0,0.00019178,2]
[372490222,1752661869715,-160.0,0.00020574,2]
[372490223,1752661869724,-306.44049949,0.00023287,2]
[372490224,1752661869734,-460.0,0.00023561,2]
[372490225,1752661869743,-460.0,0.00023835,2]
[372490226,1752661869753,-460.0,0.00024109,2]
[372490227,1752661869762,-149.38437691,0.00024383,2]
[372490228,1752661869774,-263.98121252,0.00024383,2]
[372490229,1752661869783,-236.01878748,0.00024383,2]
[372490230,1752661869983,-268.21094278,0.00018596,2]
[372490231,1752661873515,-165.74652747,0.00018596,2]
[372490232,1752661876291,-267.12331601,0.00018596,2]
[372490233,1752661878402,-231.74881121,0.00018596,2]
[372490234,1752662021261,6250.0,0.00027397,120]
[372490236,1752662193844,250.084575,0.00013699,2]
[372490237,1752662323743,268.39537791,0.00018038,2]
[372490247,1752662624920,161.03722674,0.00018038,2]
[372490249,1752662718893,160.0,0.00018548,2]
[372490250,1752662796439,-174.88390642,0.00018596,2]
[372490251,1752662798117,-231.75889449,0.00018596,2]
[372490252,1752662800794,-300.0,0.00018596,2]
[372490253,1752662803504,-231.75889449,0.00018596,2]
[372490254,1752662806664,-188.96094332,0.00018596,2]
[372490255,1752662808751,-317.59055147,0.00018596,2]
[372490256,1752662811357,-245.62561006,0.00018596,2]
[372490257,1752662814785,-199.19473615,0.00018596,2]
[372490258,1752662818637,-318.57802277,0.00018596,2]
[372490259,1752662822862,-174.02263533,0.00018596,2]
[372490260,1752662825536,-300.0,0.00018596,2]
[372490261,1752662828826,-280.05185513,0.00018596,2]
[372490262,1752662843822,-427.35076076,0.00018596,2]
[372490263,1752662848143,-303.18310589,0.00018596,2]
[372490264,1752662851101,-621.99544057,0.00018596,2]
[372490265,1752662851132,-924.51958236,0.00018596,2]
[372490266,1752662851156,-297.82322985,0.00019078,2]
[372490267,1752662851184,-1200.0,0.00019172,2]
[372490268,1752662851205,-300.0,0.00019172,2]
[372490269,1752662851226,-300.0,0.00019173,2]
[372490270,1752662851248,-242.0,0.00019173,2]
[372490271,1752662851269,-1200.0,0.00019173,2]
[372490272,1752662851291,-300.0,0.00019176,2]
[372490273,1752662851312,-500.0,0.00019176,2]
[372490274,1752662851333,-500.0,0.00019176,2]
[372490275,1752662851353,-179.78770333,0.00019176,2]
[372490276,1752662851373,-217.13781611,0.00019176,2]
[372490277,1752662851393,-276.44624654,0.00019176,2]
[372490278,1752662851414,-500.0,0.00019176,2]
[372490279,1752662851434,-638.09772656,0.00019176,2]
[372490280,1752662851455,-500.0,0.00019176,2]
[372490281,1752662851477,-500.0,0.00019176,2]
[372490282,1752662851497,-500.0,0.00019176,2]
[372490283,1752662851517,-155.00596238,0.00019176,2]
[372490284,1752662851537,-500.0,0.00019176,2]
[372490285,1752662851559,-495.52703979,0.00019176,2]
[372490286,1752662851588,-4.47296021,0.00019176,2]
[372490287,1752662851609,-543.39098145,0.00019176,2]
[372490288,1752662851631,-310.71110422,0.00019176,2]
[372490289,1752662851654,-612.88233949,0.00019176,2]
[372490290,1752662851675,-500.0,0.00019176,2]
[372490291,1752662851696,-500.0,0.00019176,2]
[372490292,1752662851718,-500.0,0.00019176,2]
[372490293,1752662851739,-500.0,0.00019176,2]
[372490294,1752662851760,-503.53625794,0.00019176,2]
[372490295,1752662851783,-500.0,0.00019176,2]
[372490296,1752662851804,-500.0,0.00019176,2]
[372490297,1752662851826,-500.0,0.00019176,2]
[372490298,1752662851848,-500.0,0.00019176,2]
[372490299,1752662851870,-500.0,0.00019176,2]
[372490300,1752662851892,-500.0,0.00019176,2]
[372490301,1752662851914,-500.0,0.00019176,2]
[372490302,1752662851937,-500.0,0.00019176,2]
[372490303,1752662851960,-500.0,0.00019176,2]
[372490304,1752662851981,-500.0,0.00019176,2]
[372490305,1752662852002,-500.0,0.00019176,2]
[372490306,1752662852022,-104.20657907,0.00019176,2]
[372490307,1752662881165,-227.41063547,0.00018596,2]
[372490313,1752663004854,6250.0,0.00027397,120]
[372490344,1752663031969,-300.0,0.00019077,2]
[372490345,1752663031979,-300.0,0.00019077,2]
[372490346,1752663031989,-1200.0,0.00019077,2]
[372490348,1752663031998,-300.0,0.00019077,2]
[372490351,1752663032008,-286.73992904,0.00019078,2]
[372490354,1752663032016,-20244.27918894,0.00019078,2]
[372490357,1752663032026,-460.0,0.00019178,2]
[372490360,1752663032035,-460.0,0.00019178,2]
[372490362,1752663032044,-460.0,0.00019178,2]
[372490364,1752663032054,-460.0,0.00019178,2]
[372490365,1752663032063,-254.42131253,0.00019178,2]
[372490367,1752663032073,-460.0,0.00019178,2]
[372490369,1752663032082,-462.93359433,0.00019178,2]
[372490370,1752663032093,-460.0,0.00019178,2]
[372490371,1752663032102,-460.0,0.00019178,2]
[372490372,1752663032111,-460.0,0.00019178,2]
[372490373,1752663032121,-460.0,0.00019178,2]
[372490374,1752663032131,-460.0,0.00019178,2]
[372490375,1752663032141,-460.0,0.00019178,2]
[372490376,1752663032150,-460.0,0.00019178,2]
[372490377,1752663032159,-460.0,0.00019178,2]
[372490378,1752663032171,-460.0,0.00019178,2]
[372490379,1752663032181,-460.0,0.00019178,2]
[372490381,1752663032191,-460.0,0.00019178,2]
[372490383,1752663032200,-461.9996848,0.00019178,2]
[372490384,1752663032210,-460.0,0.00019178,2]
[372490385,1752663032220,-460.0,0.00019178,2]
[372490386,1752663032229,-460.0,0.00019178,2]
[372490387,1752663032239,-460.0,0.00019178,2]
[372490388,1752663032249,-482.23671838,0.00019178,2]
[372490389,1752663032259,-460.0,0.00019178,2]
[372490390,1752663032268,-460.0,0.00019178,2]
[372490391,1752663032277,-460.0,0.00019178,2]
[372490392,1752663032286,-460.0,0.00019178,2]
[372490393,1752663032296,-300.68,0.00019178,2]
[372490394,1752663032306,-460.0,0.00019178,2]
[372490395,1752663032315,-460.0,0.00019178,2]
[372490396,1752663032326,-460.0,0.00019178,2]
[372490397,1752663032335,-460.0,0.00019178,2]
[372490398,1752663032346,-460.0,0.00019178,2]
[372490399,1752663032355,-460.0,0.00019178,2]
[372490400,1752663032365,-553.8399349,0.00019178,2]
[372490401,1752663032375,-340.72,0.00019178,2]
[372490402,1752663032384,-460.0,0.00019178,2]
[372490403,1752663032394,-460.0,0.00019178,2]
[372490404,1752663032404,-460.0,0.00019178,2]
[372490405,1752663032413,-460.0,0.00019178,2]
[372490406,1752663032423,-460.0,0.00019178,2]
[372490407,1752663032432,-460.0,0.00019178,2]
[372490408,1752663032442,-460.0,0.00019178,2]
[372490409,1752663032451,-460.0,0.00019178,2]
[372490410,1752663032461,-460.0,0.00019178,2]
[372490411,1752663032470,-460.0,0.00019178,2]
[372490412,1752663032480,-460.0,0.00019178,2]
[372490413,1752663032489,-479.18740595,0.00019178,2]
[372490414,1752663032499,-460.0,0.00019178,2]
[372490415,1752663032508,-152.88070772,0.00019178,2]
[372490416,1752663032517,-460.0,0.00019178,2]
[372490417,1752663032527,-460.0,0.00019178,2]
[372490418,1752663032537,-460.0,0.00019178,2]
[372490419,1752663032547,-457.28225894,0.00019178,2]
[372490420,1752663032556,-460.0,0.00019178,2]
[372490421,1752663032566,-460.0,0.00019178,2]
[372490422,1752663032578,-460.0,0.00019178,2]
[372490423,1752663032587,-460.0,0.00019178,2]
[372490424,1752663032597,-460.0,0.00019178,2]
[372490425,1752663032606,-460.0,0.00019178,2]
[372490426,1752663032615,-458.78170434,0.00019178,2]
[372490427,1752663032625,-460.0,0.00019178,2]
[372490428,1752663032636,-460.0,0.00019178,2]
[372490429,1752663032646,-460.0,0.00019178,2]
[372490430,1752663032656,-460.0,0.00019178,2]
[372490431,1752663032666,-460.0,0.00019178,2]
[372490432,1752663032676,-460.0,0.00019178,2]
[372490433,1752663032686,-460.0,0.00019178,2]
[372490434,1752663032695,-291.35001493,0.00019178,2]
[372490435,1752663032704,-363.79751571,0.00019178,2]
[372490436,1752663032714,-845.86,0.00019178,2]
[372490437,1752663032724,-460.0,0.00019178,2]
[372490438,1752663032733,-460.0,0.00019178,2]
[372490439,1752663032742,-460.0,0.00019178,2]
[372490440,1752663032752,-460.0,0.00019178,2]
[372490441,1752663032762,-460.0,0.00019178,2]
[372490442,1752663032772,-460.0,0.00019178,2]
[372490443,1752663032782,-460.0,0.00019178,2]
[372490444,1752663032792,-460.0,0.00019178,2]
[372490445,1752663032801,-460.0,0.00019178,2]
[372490446,1752663032811,-460.0,0.00019178,2]
[372490447,1752663032821,-460.0,0.00019178,2]
[372490448,1752663032831,-460.0,0.00019178,2]
[372490449,1752663032841,-460.0,0.00019178,2]
[372490450,1752663032851,-460.0,0.00019178,2]
[372490451,1752663032860,-460.0,0.00019178,2]
[372490452,1752663032870,-460.0,0.00019178,2]
[372490453,1752663032879,-460.0,0.00019178,2]
[372490454,1752663032889,-460.0,0.00019178,2]
[372490455,1752663032899,-460.0,0.00019178,2]
[372490456,1752663032908,-460.0,0.00019178,2]
[372490457,1752663032917,-460.0,0.00019178,2]
[372490458,1752663032927,-460.0,0.00019178,2]
[372490459,1752663032937,-461.97349255,0.00019178,2]
[372490460,1752663032947,-509.96978388,0.00019178,2]
[372490461,1752663032956,-460.0,0.00019178,2]
[372490462,1752663032966,-460.0,0.00019178,2]
[372490463,1752663032976,-460.0,0.00019178,2]
[372490464,1752663032985,-460.0,0.00019178,2]
[372490465,1752663032995,-460.0,0.00019178,2]
[372490466,1752663033005,-460.0,0.00019178,2]
[372490467,1752663033015,-1046.58,0.00019178,2]
[372490468,1752663033025,-460.0,0.00019178,2]
[372490469,1752663033035,-460.0,0.00019178,2]
[372490470,1752663033046,-326.42748335,0.00019178,2]
[372490471,1752663033057,-460.0,0.00019178,2]
[372490472,1752663033067,-460.0,0.00019178,2]
[372490473,1752663033079,-460.0,0.00019178,2]
[372490474,1752663033089,-481.44,0.00019178,2]
[372490475,1752663033099,-460.0,0.00019178,2]
[372490476,1752663033110,-460.0,0.00019178,2]
[372490477,1752663033120,-460.0,0.00019178,2]
[372490478,1752663033131,-460.0,0.00019178,2]
[372490479,1752663033141,-460.0,0.00019178,2]
[372490480,1752663033151,-2219.29,0.00019178,2]
[372490481,1752663033163,-460.0,0.00019178,2]
[372490482,1752663033175,-460.0,0.00019178,2]
[372490483,1752663033185,-460.0,0.00019178,2]
[372490484,1752663033195,-460.0,0.00019178,2]
[372490485,1752663033206,-822.53,0.00019178,2]
[372490486,1752663033216,-460.0,0.00019178,2]
[372490487,1752663033225,-460.0,0.00019178,2]
[372490488,1752663033235,-342.38,0.00019178,2]
[372490489,1752663033246,-460.0,0.00019178,2]
[372490490,1752663033256,-460.0,0.00019178,2]
[372490491,1752663033265,-460.0,0.00019178,2]
[372490492,1752663033275,-460.0,0.00019178,2]
[372490493,1752663033284,-460.0,0.00019178,2]
[372490494,1752663033294,-460.0,0.00019178,2]
[372490495,1752663033303,-690.47,0.00019178,2]
[372490496,1752663033313,-460.0,0.00019178,2]
[372490497,1752663033324,-460.0,0.00019178,2]
[372490498,1752663033335,-735.49,0.00019178,2]
[372490499,1752663033344,-482.07672015,0.00019178,2]
[372490500,1752663033354,-460.0,0.00019178,2]
[372490501,1752663033364,-460.0,0.00019178,2]
[372490502,1752663033374,-460.0,0.00019178,2]
[372490503,1752663033384,-1211.98,0.00019178,2]
[372490504,1752663033394,-460.0,0.00019178,2]
[372490505,1752663033403,-460.0,0.00019178,2]
[372490506,1752663033413,-460.0,0.00019178,2]
[372490507,1752663033423,-460.0,0.00019178,2]
[372490508,1752663033433,-460.0,0.00019178,2]
[372490509,1752663033442,-460.0,0.00019178,2]
[372490510,1752663033452,-460.0,0.00019178,2]
[372490511,1752663033462,-460.0,0.00019178,2]
[372490512,1752663033472,-460.0,0.00019178,2]
[372490513,1752663033482,-460.0,0.00019178,2]
[372490514,1752663033492,-632.06,0.00019178,2]
[372490515,1752663033503,-1390.3,0.00019178,2]
[372490516,1752663033514,-460.0,0.00019178,2]
[372490517,1752663033524,-738.43,0.00019178,2]
[372490518,1752663033534,-460.0,0.00019178,2]
[372490519,1752663033543,-461.22322508,0.00019178,2]
[372490520,1752663033553,-460.0,0.00019178,2]
[372490521,1752663033563,-460.0,0.00019178,2]
[372490522,1752663033574,-400.52661319,0.00019178,2]
[372490523,1752663033584,-460.0,0.00019178,2]
[372490524,1752663033594,-460.0,0.00019178,2]
[372490525,1752663033603,-409.11302142,0.00019178,2]
[372490526,1752663033613,-460.0,0.00019178,2]
[372490527,1752663033623,-460.0,0.00019178,2]
[372490528,1752663033633,-460.0,0.00019178,2]
[372490529,1752663033643,-460.0,0.00019178,2]
[372490530,1752663033653,-460.0,0.00019178,2]
[372490531,1752663033663,-460.0,0.00019178,2]
[372490532,1752663033672,-3843.14329026,0.00019178,2]
[372490533,1752663033681,-460.0,0.00019452,2]
[372490534,1752663033691,-460.0,0.00019452,2]
[372490535,1752663033701,-460.0,0.00019452,2]
[372490536,1752663033719,-460.0,0.00019452,2]
[372490537,1752663033732,-213.0552652,0.00019452,2]
[372490538,1752663033742,-460.0,0.00019452,2]
[372490539,1752663033752,-460.0,0.00019452,2]
[372490540,1752663033762,-460.0,0.00019452,2]
[372490541,1752663033772,-460.0,0.00019452,2]
[372490542,1752663033781,-460.0,0.00019452,2]
[372490543,1752663033791,-460.0,0.00019452,2]
[372490544,1752663033801,-460.0,0.00019452,2]
[372490545,1752663033811,-460.0,0.00019452,2]
[372490546,1752663033820,-460.0,0.00019452,2]
[372490547,1752663033830,-451.50982227,0.00019452,2]
[372490548,1752663033840,-460.0,0.00019452,2]
[372490549,1752663033850,-460.0,0.00019452,2]
[372490550,1752663033860,-460.0,0.00019452,2]
[372490551,1752663033870,-460.0,0.00019452,2]
[372490552,1752663033880,-261.46,0.00019452,2]
[372490553,1752663033890,-460.0,0.00019452,2]
[372490554,1752663033900,-460.0,0.00019452,2]
[372490555,1752663033910,-583.30112813,0.00019452,2]
[372490556,1752663033920,-460.0,0.00019452,2]
[372490557,1752663033929,-460.0,0.00019452,2]
[372490558,1752663033939,-460.0,0.00019452,2]
[372490559,1752663033949,-460.0,0.00019452,2]
[372490560,1752663033958,-525.51278032,0.00019452,2]
[372490561,1752663033968,-460.0,0.00019452,2]
[372490562,1752663033979,-460.0,0.00019452,2]
[372490563,1752663033990,-460.0,0.00019452,2]
[372490564,1752663034000,-460.0,0.00019452,2]
[372490565,1752663034009,-845.86,0.00019452,2]
[372490566,1752663034019,-460.0,0.00019452,2]
[372490567,1752663034029,-460.0,0.00019452,2]
[372490568,1752663034147,-177.00216828,0.00019452,2]
[372490569,1752663034157,-460.0,0.00019452,2]
[372490570,1752663034179,-522.12986327,0.00019452,2]
[372490571,1752663034189,-460.0,0.00019452,2]
[372490572,1752663034199,-460.0,0.00019452,2]
[372490573,1752663034211,-233.11584936,0.00019452,2]
[372490574,1752663034220,-460.0,0.00019452,2]
[372490575,1752663034230,-371.1018765,0.00019452,2]
[372490576,1752663034241,-460.0,0.00019452,2]
[372490577,1752663034252,-460.0,0.00019452,2]
[372490578,1752663034262,-460.0,0.00019452,2]
[372490579,1752663034271,-460.0,0.00019452,2]
[372490580,1752663034280,-460.0,0.00019452,2]
[372490581,1752663034290,-460.0,0.00019452,2]
[372490582,1752663034300,-460.0,0.00019452,2]
[372490583,1752663034309,-460.0,0.00019452,2]
[372490584,1752663034319,-1046.58,0.00019452,2]
[372490585,1752663034329,-460.0,0.00019452,2]
[372490586,1752663034340,-460.0,0.00019452,2]
[372490587,1752663034349,-460.0,0.00019452,2]
[372490588,1752663034359,-460.0,0.00019452,2]
[372490589,1752663034369,-481.44,0.00019452,2]
[372490590,1752663034378,-460.0,0.00019452,2]
[372490591,1752663034388,-460.0,0.00019452,2]
[372490592,1752663034398,-460.0,0.00019452,2]
[372490593,1752663034407,-2219.29,0.00019452,2]
[372490594,1752663034417,-460.0,0.00019452,2]
[372490595,1752663034426,-822.53,0.00019452,2]
[372490596,1752663034436,-460.0,0.00019452,2]
[372490597,1752663034445,-460.0,0.00019452,2]
[372490598,1752663034454,-460.0,0.00019452,2]
[372490599,1752663034464,-460.0,0.00019452,2]
[372490600,1752663034473,-460.0,0.00019452,2]
[372490601,1752663034483,-460.0,0.00019452,2]
[372490602,1752663034493,-460.0,0.00019452,2]
[372490603,1752663034502,-460.0,0.00019452,2]
[372490604,1752663034512,-690.47,0.00019452,2]
[372490605,1752663034522,-460.0,0.00019452,2]
[372490606,1752663034531,-460.0,0.00019452,2]
[372490607,1752663034541,-735.49,0.00019452,2]
[372490608,1752663034551,-460.0,0.00019452,2]
[372490609,1752663034560,-460.0,0.00019452,2]
[372490610,1752663034570,-1211.98,0.00019452,2]
[372490611,1752663034579,-460.0,0.00019452,2]
[372490612,1752663034589,-460.0,0.00019452,2]
[372490613,1752663034598,-540.03952428,0.00019452,2]
[372490614,1752663034608,-460.0,0.00019452,2]
[372490615,1752663034617,-460.0,0.00019452,2]
[372490616,1752663034627,-460.0,0.00019452,2]
[372490617,1752663034636,-460.0,0.00019452,2]
[372490618,1752663034645,-632.06,0.00019452,2]
[372490619,1752663034654,-1390.3,0.00019452,2]
[372490620,1752663034664,-460.0,0.00019452,2]
[372490621,1752663034673,-738.43,0.00019452,2]
[372490622,1752663034682,-460.0,0.00019452,2]
[372490623,1752663034691,-460.0,0.00019452,2]
[372490624,1752663034702,-460.0,0.00019452,2]
[372490625,1752663034711,-460.0,0.00019452,2]
[372490626,1752663034720,-460.0,0.00019452,2]
[372490627,1752663034730,-460.0,0.00019452,2]
[372490628,1752663034739,-460.0,0.00019452,2]
[372490629,1752663034749,-509.9646554,0.00019452,2]
[372490630,1752663034758,-460.0,0.00019726,2]
[372490631,1752663034768,-460.0,0.00019726,2]
[372490632,1752663034778,-460.0,0.00019726,2]
[372490633,1752663034787,-462.61272239,0.00019726,2]
[372490634,1752663034797,-460.0,0.00019726,2]
[372490635,1752663034807,-460.0,0.00019726,2]
[372490636,1752663034817,-460.0,0.00019726,2]
[372490637,1752663034827,-460.0,0.00019726,2]
[372490638,1752663034837,-460.0,0.00019726,2]
[372490639,1752663034847,-460.0,0.00019726,2]
[372490640,1752663034857,-460.0,0.00019726,2]
[372490641,1752663034867,-460.0,0.00019726,2]
[372490642,1752663034877,-460.0,0.00019726,2]
[372490643,1752663034887,-460.0,0.00019726,2]
[372490644,1752663034896,-460.0,0.00019726,2]
[372490645,1752663034906,-521.13541408,0.00019726,2]
[372490646,1752663034916,-460.0,0.00019726,2]
[372490647,1752663034925,-460.0,0.00019726,2]
[372490648,1752663034935,-192.03862888,0.00019726,2]
[372490649,1752663034946,-460.0,0.00019726,2]
[372490650,1752663034956,-460.0,0.00019726,2]
[372490651,1752663034966,-460.0,0.00019726,2]
[372490652,1752663034975,-845.86,0.00019726,2]
[372490653,1752663034985,-460.0,0.00019726,2]
[372490654,1752663034994,-460.0,0.00019726,2]
[372490655,1752663035004,-460.0,0.00019726,2]
[372490656,1752663035014,-460.0,0.00019726,2]
[372490657,1752663035023,-460.0,0.00019726,2]
[372490658,1752663035033,-460.0,0.00019726,2]
[372490659,1752663035042,-460.0,0.00019726,2]
[372490660,1752663035052,-460.0,0.00019726,2]
[372490661,1752663035062,-460.0,0.00019726,2]
[372490662,1752663035071,-460.0,0.00019726,2]
[372490663,1752663035081,-460.0,0.00019726,2]
[372490664,1752663035090,-460.0,0.00019726,2]
[372490665,1752663035100,-1046.58,0.00019726,2]
[372490666,1752663035110,-460.0,0.00019726,2]
[372490667,1752663035120,-460.0,0.00019726,2]
[372490668,1752663035130,-460.0,0.00019726,2]
[372490669,1752663035140,-481.44,0.00019726,2]
[372490670,1752663035149,-460.0,0.00019726,2]
[372490671,1752663035159,-460.0,0.00019726,2]
[372490672,1752663035172,-460.0,0.00019726,2]
[372490673,1752663035190,-2219.29,0.00019726,2]
[372490674,1752663035200,-460.0,0.00019726,2]
[372490675,1752663035210,-822.53,0.00019726,2]
[372490676,1752663035220,-460.0,0.00019726,2]
[372490677,1752663035229,-460.0,0.00019726,2]
[372490678,1752663035240,-460.0,0.00019726,2]
[372490679,1752663035250,-460.0,0.00019726,2]
[372490680,1752663035259,-460.0,0.00019726,2]
[372490681,1752663035269,-460.0,0.00019726,2]
[372490682,1752663035280,-266.93844491,0.00019726,2]
[372490683,1752663035292,-690.47,0.00019726,2]
[372490684,1752663035301,-460.0,0.00019726,2]
[372490685,1752663035310,-735.49,0.00019726,2]
[372490686,1752663035320,-460.0,0.00019726,2]
[372490687,1752663035332,-1211.98,0.00019726,2]
[372490688,1752663035341,-460.0,0.00019726,2]
[372490689,1752663035351,-460.0,0.00019726,2]
[372490690,1752663035361,-460.0,0.00019726,2]
[372490691,1752663035371,-460.0,0.00019726,2]
[372490692,1752663035381,-460.0,0.00019726,2]
[372490693,1752663035390,-460.0,0.00019726,2]
[372490694,1752663035400,-632.06,0.00019726,2]
[372490695,1752663035410,-1390.3,0.00019726,2]
[372490696,1752663035419,-460.0,0.00019726,2]
[372490697,1752663035429,-738.43,0.00019726,2]
[372490698,1752663035438,-460.0,0.00019726,2]
[372490699,1752663035448,-460.0,0.00019726,2]
[372490700,1752663035457,-460.0,0.00019726,2]
[372490701,1752663035467,-460.0,0.00019726,2]
[372490702,1752663035477,-460.0,0.00019726,2]
[372490703,1752663035487,-460.0,0.00019726,2]
[372490704,1752663035496,-500.0,0.00019732,2]
[372490705,1752663035505,-500.0,0.00019852,2]
[372490706,1752663035515,-460.0,0.0002,2]
[372490707,1752663035525,-460.0,0.0002,2]
[372490708,1752663035534,-184.69847669,0.0002,2]
[372490709,1752663035544,-598.15789059,0.0002,2]
[372490710,1752663035553,-460.0,0.0002,2]
[372490711,1752663035563,-460.0,0.0002,2]
[372490712,1752663035573,-460.0,0.0002,2]
[372490713,1752663035582,-465.09735393,0.0002,2]
[372490714,1752663035592,-460.0,0.0002,2]
[372490715,1752663035601,-460.0,0.0002,2]
[372490716,1752663035611,-14300.23978458,0.0002,2]
[372490717,1752663035621,-460.0,0.0002,2]
[372490718,1752663035630,-460.0,0.0002,2]
[372490719,1752663035641,-511.67077664,0.0002,2]
[372490720,1752663035651,-460.0,0.0002,2]
[372490721,1752663035662,-460.0,0.0002,2]
[372490722,1752663035671,-845.86,0.0002,2]
[372490723,1752663035681,-460.0,0.0002,2]
[372490724,1752663035690,-460.0,0.0002,2]
[372490725,1752663035700,-460.0,0.0002,2]
[372490726,1752663035710,-460.0,0.0002,2]
[372490727,1752663035721,-460.0,0.0002,2]
[372490728,1752663035730,-460.0,0.0002,2]
[372490729,1752663035738,-460.0,0.0002,2]